[Event "2nd Namma Bengaluru Open-B 2025"]
[Site "Bengaluru"]
[Date "2025.04.11"]
[Round "4.8"]
[White "Narahari Geethika Hasini"]
[Black "Karthick Sai P"]
[Result "1-0"]
[Annotator "NA"]
[ECO "E70"]
[WhiteElo "1856"]
[BlackElo "1754"]
[PlyCount "103"]
[EventDate "2025.04.10"]
[EventType "swiss"]
[EventCountry "IND"]
[SourceTitle "playchess.com"]
[Source "ChessBase"]
[SourceQuality "1"]
[TimeControl "3600+30"]

1. d4 {[%emt 0:00:21]} Nf6 {[%emt 0:00:10]} 2. c4 {[%emt 0:00:03]} g6 {[%emt 0:00:05]} 3. Nc3 {[%emt 0:00:15]} Bg7 {[%emt 0:00:07]} 4. e4 {[%emt 0:00:02]} O-O {[%emt 0:00:30]} 5. e5 {[%emt 0:00:41]} Ne8 {[%emt 0:00:08]} 6. f4 {[%emt 0:00:38]} d6 {[%emt 0:00:39]} 7. Nf3 {[%emt 0:05:23]} dxe5 {[%emt 0:01:18]} 8. fxe5 {[%emt 0:01:22]} Nc6 {[%emt 0:02:13]} 9. Be2 {[%emt 0:00:48]} f6 {[%emt 0:03:19]} 10. e6 {[%emt 0:02:20]} f5 {[%emt 0:03:00]} 11. d5 {[%emt 0:02:07]} Ne5 {[%emt 0:00:08]} 12. Bf4 {[%emt 0:02:01]} Nxf3+ {[%emt 0:03:54]} 13. Bxf3 {[%emt 0:00:05]} Nf6 {[%emt 0:05:54]} 14. O-O {[%emt 0:01:13]} c6 {[%emt 0:03:54]} 15. Qe2 {[%emt 0:02:49]} cxd5 {[%emt 0:01:26]} 16. cxd5 {[%emt 0:00:15]} Ne8 {[%emt 0:00:19]} 17. Rac1 {[%emt 0:07:05]} a6 {[%emt 0:00:51]} 18. Rfd1 {[%emt 0:00:24]} Nd6 {[%emt 0:00:28]} 19. Na4 {[%emt 0:04:33]} b6 {[%emt 0:12:47]} 20. Rc6 {[%emt 0:01:19]} Re8 {[%emt 0:01:20]} 21. Nxb6 {[%emt 0:00:53]} Rb8 {[%emt 0:00:15]} 22. Bxd6 {[%emt 0:03:04]} exd6 {[%emt 0:00:27]} 23. Nxc8 {[%emt 0:02:57]} Rxc8 {[%emt 0:00:22]} 24. Qxa6 {[%emt 0:01:40]} Ra8 {[%emt 0:02:45]} 25. Rxd6 {[%emt 0:04:08]} Rxa6 {[%emt 0:02:15]} 26. Rxd8 {[%emt 0:00:02]} Rxd8 {[%emt 0:00:02]} 27. e7 {[%emt 0:00:02]} Re8 {[%emt 0:00:02]} 28. d6 {[%emt 0:00:05]} Rxd6 {[%emt 0:01:03]} 29. Rxd6 {[%emt 0:00:02]} Rxe7 {[%emt 0:00:01]} 30. Bd5+ {[%emt 0:00:44]} Kf8 {[%emt 0:01:08]} 31. Rd8+ {[%emt 0:00:03]} Re8 {[%emt 0:00:02]} 32. Rxe8+ {[%emt 0:00:07]} Kxe8 {[%emt 0:00:18]} 33. b4 {[%emt 0:00:14]} h6 {[%emt 0:00:10]} 34. a4 {[%emt 0:00:15]} Bc3 {[%emt 0:00:11]} 35. b5 {[%emt 0:00:02]} Ba5 {[%emt 0:00:05]} 36. Kf2 {[%emt 0:00:17]} Ke7 {[%emt 0:00:08]} 37. Kf3 {[%emt 0:00:09]} Kd6 {[%emt 0:00:20]} 38. Bf7 {[%emt 0:01:09]} g5 {[%emt 0:00:55]} 39. g4 {[%emt 0:04:18]} f4 {[%emt 0:00:46]} 40. Ke4 {[%emt 0:00:22]} Kc5 {[%emt 0:00:22]} 41. Bb3 {[%emt 0:02:34]} Kb4 {[%emt 0:00:11]} 42. Bd1 {[%emt 0:00:03]} Kc5 {[%emt 0:20:27]} 43. Kf5 {[%emt 0:00:36]} Kd6 {[%emt 0:01:17]} 44. Kg6 {[%emt 0:00:35]} Ke6 {[%emt 0:00:09]} 45. Kxh6 {[%emt 0:00:19]} Kf6 {[%emt 0:00:09]} 46. h4 {[%emt 0:01:09]} gxh4 {[%emt 0:01:17]} 47. g5+ {[%emt 0:00:02]} Kf5 {[%emt 0:01:17]} 48. g6 {[%emt 0:00:06]} Bc3 {[%emt 0:00:10]} 49. Bf3 {[%emt 0:00:12]} h3 {[%emt 0:00:12]} 50. b6 {[%emt 0:00:06]} h2 {[%emt 0:00:50]} 51. b7 {[%emt 0:00:04]} Be5 {[%emt 0:00:03]} 52. g7 {[%emt 0:00:05]} 1-0

[Event "2nd Namma Bengaluru Open-B 2025"]
[Site "Bengaluru"]
[Date "2025.04.11"]
[Round "4.9"]
[White "Aditya Dileepraj"]
[Black "Aaditya Ranjan Sahu"]
[Result "1-0"]
[Annotator "NA"]
[ECO "D91"]
[WhiteElo "1746"]
[BlackElo "1850"]
[PlyCount "101"]
[EventDate "2025.04.10"]
[EventType "swiss"]
[EventCountry "IND"]
[SourceTitle "playchess.com"]
[Source "ChessBase"]
[SourceQuality "1"]
[TimeControl "3600+30"]

1. d4 {[%emt 0:00:15]} Nf6 {[%emt 0:00:03]} 2. c4 {[%emt 0:00:13]} g6 {[%emt 0:00:08]} 3. Nc3 {[%emt 0:00:13]} d5 {[%emt 0:00:02]} 4. Nf3 {[%emt 0:00:15]} Bg7 {[%emt 0:00:08]} 5. Bg5 {[%emt 0:00:42]} c6 {[%emt 0:00:22]} 6. e3 {[%emt 0:00:26]} O-O {[%emt 0:00:10]} 7. Qb3 {[%emt 0:00:31]} dxc4 {[%emt 0:03:24]} 8. Bxc4 {[%emt 0:00:15]} b5 {[%emt 0:00:15]} 9. Be2 {[%emt 0:00:07]} Be6 {[%emt 0:00:40]} 10. Qc2 {[%emt 0:00:47]} h6 {[%emt 0:00:38]} 11. Bxf6 {[%emt 0:00:57]} exf6 {[%emt 0:00:40]} 12. O-O {[%emt 0:00:41]} Nd7 {[%emt 0:00:23]} 13. Rfd1 {[%emt 0:01:00]} Nb6 {[%emt 0:02:24]} 14. e4 {[%emt 0:01:02]} Rc8 {[%emt 0:01:35]} 15. h3 {[%emt 0:06:31]} f5 {[%emt 0:00:44]} 16. e5 {[%emt 0:01:12]} Nd5 {[%emt 0:00:32]} 17. Nxd5 {[%emt 0:53:53]} Bxd5 {[%emt 0:00:15]} 18. a4 {[%emt 0:00:00]} bxa4 {[%emt 0:02:23]} 19. Rxa4 {[%emt 0:00:00]} Rb8 {[%emt 0:02:16]} 20. Nd2 {[%emt 0:00:00]} f6 {[%emt 0:13:19]} 21. Nc4 {[%emt 0:00:00]} fxe5 {[%emt 0:03:06]} 22. Nxe5 {[%emt 0:00:00]} Bxe5 {[%emt 0:03:56]} 23. dxe5 {[%emt 0:00:00]} Qg5 {[%emt 0:02:58]} 24. g4 {[%emt 0:00:00]} Rfe8 {[%emt 0:02:06]} 25. f4 {[%emt 0:00:00]} Qh4 {[%emt 0:01:32]} 26. Ra3 {[%emt 0:00:00]} Rb4 {[%emt 0:01:35]} 27. Rxd5 {[%emt 0:00:00]} cxd5 {[%emt 0:02:06]} 28. Qc6 {[%emt 0:00:00]} Re7 {[%emt 0:03:13]} 29. Qxg6+ {[%emt 0:00:00]} Kh8 {[%emt 0:01:33]} 30. Rc3 {[%emt 0:00:00]} Rb8 {[%emt 0:01:11]} 31. Kg2 {[%emt 0:00:00]} d4 {[%emt 0:00:53]} 32. Rc6 {[%emt 0:00:00]} d3 {[%emt 0:00:53]} 33. Bxd3 {[%emt 0:00:00]} Rd7 {[%emt 0:02:03]} 34. Qxh6+ {[%emt 0:00:00]} Qxh6 {[%emt 0:02:29]} 35. Rxh6+ {[%emt 0:00:00]} Kg7 {[%emt 0:01:03]} 36. Rh7+ {[%emt 0:00:00]} Kxh7 {[%emt 0:00:03]} 37. Bxf5+ {[%emt 0:00:00]} Kg7 {[%emt 0:00:15]} 38. Bxd7 {[%emt 0:00:00]} Rxb2+ {[%emt 0:00:07]} 39. Kg3 {[%emt 0:00:00]} Rd2 {[%emt 0:00:33]} 40. e6 {[%emt 0:00:00]} Kf6 {[%emt 0:00:12]} 41. g5+ {[%emt 0:00:00]} Ke7 {[%emt 0:00:37]} 42. f5 {[%emt 0:00:00]} Rd3+ {[%emt 0:00:21]} 43. Kg4 {[%emt 0:00:00]} a5 {[%emt 0:01:42]} 44. f6+ {[%emt 0:00:00]} Kd8 {[%emt 0:00:21]} 45. Bb5 {[%emt 0:00:00]} Rd4+ {[%emt 0:02:17]} 46. Kh5 {[%emt 0:00:00]} a4 {[%emt 0:00:32]} 47. e7+ {[%emt 0:00:00]} Kc7 {[%emt 0:00:13]} 48. e8=Q {[%emt 0:00:00]} a3 {[%emt 0:00:12]} 49. Qc6+ {[%emt 0:00:00]} Kb8 {[%emt 0:00:18]} 50. Qb6+ {[%emt 0:00:00]} Ka8 {[%emt 0:00:06]} 51. Bc6# {[%emt 0:00:00]} 1-0

[Event "2nd Namma Bengaluru Open-B 2025"]
[Site "Bengaluru"]
[Date "2025.04.11"]
[Round "4.10"]
[White "Stanley Blessing J V"]
[Black "Suryapranjal Indrajeet S P"]
[Result "1/2-1/2"]
[Annotator "NA"]
[ECO "E60"]
[WhiteElo "1847"]
[BlackElo "1752"]
[PlyCount "98"]
[EventDate "2025.04.10"]
[EventType "swiss"]
[EventCountry "IND"]
[SourceTitle "playchess.com"]
[Source "ChessBase"]
[SourceQuality "1"]
[TimeControl "3600+30"]

1. d4 {[%emt 1:01:00]} Nf6 {[%emt 1:01:00]} 2. c4 {[%emt 0:00:30]} g6 {[%emt 0:00:30]} 3. Nf3 {[%emt 0:00:30]} Bg7 {[%emt 0:00:30]} 4. g3 {[%emt 0:00:30]} c5 {[%emt 0:00:30]} 5. d5 {[%emt 0:00:30]} b5 {[%emt 0:00:30]} 6. cxb5 {[%emt 0:00:30]} Qa5+ {[%emt 0:00:30]} 7. Bd2 {[%emt 0:00:30]} Qxb5 {[%emt 0:00:30]} 8. Nc3 {[%emt 0:00:30]} Qb6 {[%emt 0:00:30]} 9. e4 {[%emt 0:00:30]} Bb7 {[%emt 0:00:30]} 10. a4 {[%emt 0:00:30]} a5 {[%emt 0:00:30]} 11. Bb5 {[%emt 0:00:30]} O-O {[%emt 0:00:30]} 12. O-O {[%emt 0:00:30]} Na6 {[%emt 0:00:30]} 13. Bf4 {[%emt 0:00:30]} Nb4 {[%emt 0:00:30]} 14. Re1 {[%emt 0:00:30]} d6 {[%emt 0:00:30]} 15. Nd2 {[%emt 0:00:30]} Nh5 {[%emt 0:00:30]} 16. Be3 {[%emt 0:00:30]} Qc7 {[%emt 0:00:30]} 17. Be2 {[%emt 0:00:30]} Nf6 {[%emt 0:00:30]} 18. Nc4 {[%emt 0:00:30]} Nd7 {[%emt 0:00:30]} 19. Nb5 {[%emt 0:00:30]} Qd8 {[%emt 0:00:30]} 20. Bd2 {[%emt 0:00:30]} Nb6 {[%emt 0:00:30]} 21. Bc3 {[%emt 0:00:30]} Nxc4 {[%emt 0:00:30]} 22. Bxc4 {[%emt 0:00:30]} Qd7 {[%emt 0:00:30]} 23. Qd2 {[%emt 0:00:30]} Rad8 {[%emt 0:00:30]} 24. Rad1 {[%emt 0:00:30]} Ba6 {[%emt 0:00:30]} 25. Na3 {[%emt 0:00:30]} Bxc4 {[%emt 0:00:30]} 26. Nxc4 {[%emt 0:00:30]} Qxa4 {[%emt 0:00:30]} 27. Ra1 {[%emt 0:00:30]} Qb5 {[%emt 0:00:30]} 28. Bxg7 {[%emt 0:00:30]} Kxg7 {[%emt 0:00:30]} 29. Qc3+ {[%emt 0:00:30]} Kg8 {[%emt 0:00:30]} 30. Rxa5 {[%emt 0:00:30]} Qb7 {[%emt 0:00:30]} 31. Rea1 Ra8 {[%emt 0:00:30]} 32. Qb3 {[%emt 0:01:00]} Rxa5 {[%emt 0:00:30]} 33. Rxa5 {[%emt 0:00:30]} Rb8 {[%emt 0:00:30]} 34. Na3 {[%emt 0:00:30]} Qc7 {[%emt 0:00:30]} 35. Qa4 {[%emt 0:00:30]} Kg7 {[%emt 0:00:30]} 36. b3 {[%emt 0:00:30]} Nd3 {[%emt 0:00:30]} 37. Rb5 {[%emt 0:00:30]} Rb7 {[%emt 0:00:30]} 38. Nc2 {[%emt 0:00:30]} Qb8 {[%emt 0:00:30]} 39. Qa1+ {[%emt 0:00:30]} f6 {[%emt 0:00:30]} 40. Rxb7 {[%emt 0:00:30]} Qxb7 41. Qa4 {[%emt 0:00:30]} Kf7 {[%emt 0:01:00]} 42. f4 {[%emt 0:00:30]} Nc1 {[%emt 0:00:30]} 43. b4 {[%emt 0:00:30]} cxb4 {[%emt 0:00:30]} 44. Qxb4 {[%emt 0:00:30]} Qxb4 {[%emt 0:00:30]} 45. Nxb4 {[%emt 0:00:30]} e6 {[%emt 0:00:30]} 46. Kf2 {[%emt 0:00:30]} f5 {[%emt 0:00:30]} 47. Ke3 {[%emt 0:00:30]} Nb3 {[%emt 0:00:30]} 48. Nc6 {[%emt 0:00:30]} Nc5 {[%emt 0:00:30]} 49. e5 {[%emt 0:00:30]} exd5 {[%emt 0:00:30]} 1/2-1/2